bitfinex/quotes_ETHUSD_20251031
["timestamp","ask_amount","ask_price","bid_price","bid_amount"]
[1761899966334,0.1296,3842.4,3842.3,0.9236]
[1761899966900,1.95137805,3842.4,3842.3,0.9236]
[1761899967209,1.95138564,3842.4,3842.3,0.4724]
[1761899968000,1.95138564,3842.4,3842.3,0.4744]
[1761899968400,1.95238564,3842.4,3842.3,0.4744]
[1761899970034,0.1306,3842.4,3842.3,0.4744]
[1761899970532,1.95237805,3842.4,3842.3,0.4744]
[1761899971503,1.95237805,3842.4,3842.3,0.002]
[1761899972139,1.95237805,3842.4,3842.3,0.4744]
[1761899972343,0.1306,3842.4,3842.3,0.4744]
[1761899972640,1.95237805,3842.4,3842.3,0.4744]
[1761899973114,0.001,3842.4,3842.3,0.9256]
[1761899973316,1.82277805,3842.4,3842.3,0.9256]
[1761899974501,0.001,3842.4,3842.3,0.9256]
[1761899975048,0.001,3842.4,3842.3,3.5304901]
[1761899975831,0.001,3842.4,3842.3,1.70866464]
[1761899976042,0.001,3842.4,3842.3,3.5304901]
[1761899977144,0.001,3842.4,3842.3,1.70866464]
[1761899977301,0.001,3842.4,3842.3,0.9256]
[1761899977829,0.001,3842.4,3842.3,2.74742546]
[1761899979102,0.001,3842.4,3842.3,2.77345153]
[1761899979303,0.001,3842.4,3842.3,4.17313153]
[1761899982632,0.001,3842.4,3842.3,4.14710546]
[1761899982833,0.001,3842.4,3842.3,1.54212193]
[1761899983158,0.001,3842.4,3842.3,0.9256]
[1761899984056,0.001,3842.4,3842.3,2.74742546]
[1761899984651,0.001,3842.4,3842.3,2.87702546]
[1761899985160,0.001,3842.4,3842.3,1.0552]
[1761899985358,0.001,3842.4,3842.3,0.604]
[1761899985869,0.001,3842.4,3842.3,0.1316]
[1761899986956,0.0002,3842.4,3842.3,0.1316]
[1761899988662,0.2001,3842.4,3842.3,0.1316]
[1761899988839,6.90884986,3842.4,3842.3,0.002]
[1761899989027,5.08707181,3842.4,3842.3,0.002]
[1761899989232,7.82961669,3842.4,3842.3,0.002]
[1761899989459,8.30581669,3842.4,3842.3,0.002]
[1761899989659,6.13743864,3842.4,3842.3,0.002]
[1761899990542,7.95921669,3842.4,3842.3,0.002]
[1761899993035,8.30581669,3842.4,3842.3,0.002]
[1761899995137,7.95921669,3842.4,3842.3,0.002]
[1761899999637,6.13743864,3842.4,3842.3,0.002]
[1761900000037,1.05056683,3842.4,3842.3,0.002]
[1761900000240,0.0002,3842.4,3842.3,0.963]
[1761900000857,0.2001,3842.4,3842.3,0.002]
[1761900001058,2.36847805,3842.4,3842.3,0.002]
[1761900001263,0.90801604,3842.4,3842.3,0.482]
[1761900001436,0.0002,3842.4,3842.3,0.963]
[1761900005736,0.0002,3842.4,3842.3,0.482]
[1761900006167,0.0002,3842.4,3842.3,0.963]
[1761900010372,0.0002,3842.4,3842.3,1.0926]
[1761900012192,0.0004,3842.5,3842.4,0.48]
[1761900012386,0.0004,3842.5,3842.4,0.961]
[1761900016010,0.0004,3842.5,3842.4,0.9870254]
[1761900016207,0.0004,3842.5,3842.4,1.29946957]
[1761900016412,0.0004,3842.5,3842.4,1.27344417]
[1761900016608,0.0004,3842.5,3842.4,0.961]
[1761900017621,0.0004,3842.5,3842.4,2.80880345]
[1761900017832,0.0004,3842.5,3842.4,9.67870379]
[1761900020411,0.0004,3842.5,3842.4,4.18245805]
[1761900021241,0.0004,3842.5,3842.4,4.20848345]
[1761900021822,0.0004,3842.5,3842.4,4.18245805]
[1761900023113,0.0004,3842.5,3842.4,5.36407295]
[1761900031926,0.0004,3842.5,3842.4,4.88307295]
[1761900032157,0.0004,3842.5,3842.4,3.22145805]
[1761900032657,0.0004,3842.5,3842.4,3.71225805]
[1761900033161,0.0004,3842.5,3842.4,4.20035805]
[1761900037391,0.0006,3842.8,3842.6,1.82167724]
[1761900037593,0.0006,3842.8,3842.7,0.1296]
[1761900037792,0.2005,3842.8,3842.7,0.1296]
[1761900038600,0.2005,3842.8,3842.7,1.95123582]
[1761900039666,0.2005,3842.8,3842.7,0.1296]
[1761900039868,0.2005,3842.8,3842.7,1.95123582]
[1761900040178,0.2005,3842.8,3842.7,0.1296]
[1761900041093,0.2005,3842.8,3842.7,1.95123582]
[1761900041907,0.2005,3842.8,3842.7,0.1296]
[1761900043184,0.2005,3842.8,3842.7,1.95123582]
[1761900043589,0.2005,3842.8,3842.7,0.1296]
[1761900046322,0.0006,3842.8,3842.7,1.97725918]
[1761900047415,0.0006,3842.8,3842.7,0.1296]
[1761900049729,0.2005,3842.8,3842.7,0.1296]
[1761900050465,0.0006,3842.8,3842.7,0.1296]
[1761900052262,0.2019,3842.8,3842.7,0.1296]
[1761900053561,0.0006,3842.8,3842.7,0.1296]
[1761900053859,0.0006,3842.8,3842.7,0.5999]
[1761900054049,0.0006,3842.8,3842.7,2.42153582]
[1761900054636,0.0006,3842.8,3842.7,2.89563582]
[1761900056898,0.0006,3842.8,3842.7,3.37017788]
[1761900057262,0.0006,3842.8,3842.7,3.39620124]
[1761900058652,0.0006,3842.8,3842.7,4.79588124]
[1761900061187,0.0006,3842.8,3842.7,2.47412206]
[1761900061482,0.2005,3842.8,3842.7,0.1296]
[1761900062104,0.0006,3842.8,3842.7,0.1296]
[1761900062607,0.2011,3842.8,3842.7,0.1296]
[1761900063578,0.5463,3842.8,3842.7,0.1296]
[1761900064380,0.2011,3842.8,3842.7,0.1296]
[1761900064582,0.5463,3842.8,3842.7,0.1296]
[1761900065797,0.5463,3842.8,3842.6,0.002]
[1761900066110,0.61142532,3842.7,3842.6,0.002]
[1761900067718,0.0035,3842.7,3842.6,0.002]
[1761900068209,0.1028,3842.9,3842.6,0.4723]
[1761900068383,0.001,3842.9,3842.6,0.9464]
[1761900069105,0.001,3842.9,3842.6,0.4723]
[1761900069271,0.001,3842.9,3842.8,0.1296]
[1761900069719,0.2011,3842.9,3842.8,0.1296]
[1761900070319,0.001,3842.9,3842.8,0.1296]
[1761900071011,0.001,3842.9,3842.8,0.71563889]
[1761900071214,0.001,3842.9,3842.8,1.18973889]
[1761900071414,0.001,3842.9,3842.8,3.01132731]
[1761900073643,0.001,3842.9,3842.8,3.03735]
[1761900073808,0.001,3842.9,3842.8,3.01132731]
[1761900074009,0.001,3842.9,3842.8,3.03735]
[1761900074235,0.001,3842.9,3842.8,4.41100731]
[1761900081032,0.001,3842.9,3842.8,4.54060731]
[1761900084562,0.001,3842.9,3842.8,4.56663]
[1761900084921,0.001,3842.9,3842.8,4.67087824]
[1761900085641,0.001,3842.9,3842.8,5.05035955]
[1761900087790,0.0002,3842.9,3842.8,4.64485555]
[1761900088090,0.0002,3842.9,3842.8,4.67087824]
[1761900090259,0.0002,3842.9,3842.8,5.07638224]
[1761900090457,0.0002,3842.9,3842.8,5.05035955]
[1761900090680,0.0002,3842.9,3842.8,4.64485555]
[1761900091311,0.0002,3842.9,3842.8,4.64685555]
[1761900091611,0.0002,3842.9,3842.8,9.52944252]
[1761900093795,0.0002,3842.9,3842.8,7.52606252]
[1761900093997,0.0002,3842.9,3842.8,8.00956252]
[1761900094204,0.0002,3842.9,3842.8,7.42181428]
[1761900094519,0.0002,3842.9,3842.8,8.82149428]
[1761900094889,0.0002,3842.9,3842.8,9.30499428]
[1761900097013,0.0002,3842.9,3842.8,8.82149428]
[1761900097314,0.0002,3842.9,3842.8,9.30499428]
[1761900101129,0.0002,3842.9,3842.8,8.82149428]
[1761900101424,0.0002,3842.9,3842.8,9.30499428]
[1761900102415,0.0002,3842.9,3842.8,8.35119428]
[1761900102919,0.0002,3842.9,3842.8,8.83259428]
[1761900103834,0.0002,3842.9,3842.8,8.96219428]
[1761900104195,0.0002,3842.9,3842.8,9.44569428]
[1761900108752,0.0002,3842.9,3842.8,8.48079428]
[1761900108924,0.2003,3842.9,3842.8,8.48079428]
[1761900110326,0.0002,3842.9,3842.8,8.48079428]
[1761900110754,0.2017,3842.9,3842.8,3.59820731]
[1761900111053,0.3033,3842.9,3842.8,3.59820731]
[1761900113037,0.3025,3842.9,3842.8,3.59820731]
[1761900113246,0.2009,3842.9,3842.8,3.59820731]
[1761900113641,0.001,3843.2,3843.1,1.82144622]
[1761900114179,0.201,3843.2,3843.1,1.95104622]
[1761900114964,0.5468,3843.2,3843.1,0.1296]
[1761900117266,0.5468,3843.2,3843.1,1.97706688]
[1761900117738,0.201,3843.2,3843.1,1.97706688]
[1761900117929,0.201,3843.2,3843.1,1.95104622]
[1761900118126,0.001,3843.2,3843.1,2.98275161]
[1761900119676,0.001,3843.2,3843.1,3.62475161]
[1761900119970,0.001,3843.2,3843.1,4.07625161]
[1761900120757,0.001,3843.2,3843.1,3.43465161]
[1761900121260,0.001,3843.2,3843.1,3.88615161]
[1761900124484,0.001,3843.2,3843.1,3.43465161]
[1761900124663,0.001,3843.2,3843.1,5.28583161]
[1761900124977,0.001,3843.2,3843.1,5.25981095]
[1761900125978,0.001,3843.2,3843.1,4.35641095]
[1761900126343,0.001,3843.2,3843.1,4.80831095]
[1761900126577,0.3483,3843.2,3843.1,2.95673095]
[1761900126879,0.5483,3843.2,3843.1,1.95104622]
[1761900127976,0.5483,3843.2,3843.1,0.1296]
[1761900130278,0.5483,3843.2,3842.8,0.002]
[1761900130464,0.1036,3842.9,3842.8,0.002]
[1761900130879,0.4509,3842.9,3842.8,0.1316]
[1761900132882,0.1036,3842.9,3842.8,1.95318842]
[1761900133277,0.1036,3842.9,3842.8,0.1316]
[1761900135219,0.4509,3842.9,3842.8,0.1316]
[1761900136119,0.5825,3842.9,3842.8,0.1316]
[1761900136618,0.1342,3842.9,3842.8,0.1316]
[1761900136992,0.2352,3842.9,3842.8,0.1316]
[1761900138209,0.2344,3842.9,3842.8,0.1316]
[1761900138520,0.1334,3842.9,3842.8,0.1316]
[1761900139443,0.1334,3843.0,3842.8,0.1316]
[1761900139618,0.2006,3842.9,3842.8,0.1316]
[1761900139823,0.001,3843.2,3842.9,1.82152102]
[1761900140223,0.001,3843.2,3843.1,0.1296]
[1761900140721,0.2031,3843.2,3843.1,0.1296]
[1761900140927,0.001,3843.2,3843.1,0.5875]
[1761900141091,0.001,3843.2,3843.1,2.88586688]
[1761900141418,0.001,3843.2,3843.1,3.94422644]
[1761900144651,0.001,3843.2,3843.1,3.81462644]
[1761900144853,0.001,3843.2,3843.1,2.73024622]
[1761900145543,0.001,3843.2,3843.1,1.82144622]
[1761900146716,0.001,3843.2,3843.1,8.25017364]
[1761900147053,0.001,3843.2,3843.1,8.22415298]
[1761900147228,0.001,3843.2,3843.1,2.73024622]
[1761900147430,0.001,3843.2,3843.1,3.22365304]
[1761900149954,0.001,3843.2,3843.1,4.6493537]
[1761900150249,0.001,3843.2,3843.1,4.62333304]
[1761900151746,0.001,3843.2,3843.1,10.14326046]
[1761900151954,0.001,3843.2,3843.1,10.1172398]
[1761900153436,1.82012679,3845.9,3843.9,1.82106714]
[1761900153754,0.3465,3845.4,3843.9,9.1725539]
[1761900153955,0.3465,3845.4,3843.9,9.6234539]
[1761900154157,0.10422488,3845.4,3843.9,9.6234539]
[1761900154336,0.3465,3845.6,3843.9,9.6234539]
[1761900154657,0.10422488,3845.4,3843.9,9.6234539]
[1761900154856,0.10422488,3845.4,3843.9,9.7530539]
[1761900155035,0.45072488,3845.4,3843.9,9.7530539]
[1761900157367,0.45072488,3845.4,3843.9,10.20377878]
[1761900157534,0.45072488,3845.4,3843.9,11.40627036]
[1761900159083,0.45072488,3845.4,3843.9,10.95554548]
[1761900160333,0.001,3844.4,3843.9,10.95554548]
[1761900160946,0.001,3844.4,3843.9,11.05976602]
[1761900162274,0.001,3844.4,3843.9,14.90976602]
[1761900162447,0.001,3844.4,3843.9,15.31527002]
[1761900163051,0.001,3844.4,3843.9,15.18567002]
[1761900163462,0.0002,3844.0,3843.9,15.18567002]
[1761900168338,0.001,3844.4,3844.3,1.82087766]
[1761900168543,0.01,3845.7,3844.6,1.82073557]
[1761900168743,0.01,3845.7,3844.6,2.30464607]
[1761900168976,0.01,3845.7,3844.6,4.25942679]
[1761900169273,1e-08,3844.7,3844.6,4.25942679]
[1761900169956,1e-08,3844.7,3844.6,10.15883755]
[1761900170156,1e-08,3844.7,3844.6,11.38120624]
[1761900170474,1e-08,3844.7,3844.6,10.97570224]
[1761900171258,1e-08,3844.7,3844.6,4.92669476]
[1761900171468,1e-08,3844.7,3844.6,5.41889476]
[1761900173189,1e-08,3844.7,3844.6,5.54849476]
[1761900174462,1e-08,3844.7,3844.6,5.41889476]
[1761900174869,1e-08,3844.7,3844.6,5.76539476]
[1761900175772,1e-08,3844.7,3844.6,6.17089876]
[1761900178651,1e-08,3844.7,3844.6,5.68069876]
[1761900178856,0.00100001,3844.7,3844.6,5.68069876]
[1761900179057,0.00100001,3844.7,3844.6,6.17289876]
[1761900179888,0.00100001,3844.7,3844.6,5.76739476]
[1761900184088,0.00100001,3844.7,3844.6,6.17289876]
[1761900184517,0.00100001,3844.7,3844.6,6.30249876]
[1761900188798,0.00020001,3844.7,3844.6,6.30249876]
[1761900191494,0.00020001,3844.7,3844.6,5.95599876]
[1761900192509,0.01,3845.7,3845.6,1.82026211]
[1761900193012,0.2115,3845.7,3845.6,1.82026211]
[1761900193413,0.2115,3845.7,3845.6,8.09536876]
[1761900193810,0.2115,3845.7,3845.6,6.27510665]
[1761900194031,0.5566,3845.7,3845.6,1.39968]
[1761900197474,0.5576,3845.7,3845.6,1.39968]
[1761900198842,0.5576,3845.7,3844.6,1.25037919]
[1761900199044,0.0035,3845.4,3845.1,1.82048721]
[1761900199417,0.011,3845.7,3845.2,1.82045052]
[1761900199932,0.2015,3845.3,3845.0,3.22020818]
[1761900200118,0.002,3845.1,3845.0,3.22020818]
[1761900201661,0.002,3845.1,3845.0,1.39968]
[1761900201965,0.002,3845.1,3845.0,3.22022616]
[1761900202130,0.002,3845.1,3845.0,4.21185861]
[1761900202470,0.002,3845.1,3845.0,2.52091245]
[1761900202844,0.002,3845.1,3845.0,4.34145861]
[1761900203062,0.002,3845.1,3845.0,2.52091245]
[1761900203640,0.002,3845.1,3845.0,4.36746641]
[1761900204137,0.3465,3845.6,3845.1,1.82048566]
[1761900204337,0.3465,3845.6,3845.2,4.90143309]
[1761900204548,0.3465,3845.6,3845.5,0.1296]
[1761900204966,0.548,3845.6,3845.5,0.1296]
[1761900205585,0.548,3845.6,3845.5,0.15560442]
[1761900206466,0.548,3845.6,3845.5,0.1296]
[1761900206982,0.2015,3845.6,3845.5,0.1296]
[1761900207560,0.5466,3845.6,3845.5,0.1296]
[1761900211811,0.5466,3845.6,3845.5,0.15560442]
[1761900212012,0.5466,3845.6,3845.5,0.1296]
[1761900213911,0.5458,3845.6,3845.5,0.1296]
[1761900214315,0.011,3845.7,3845.5,0.1296]
[1761900214486,0.3457,3845.6,3845.5,0.1296]
[1761900214693,0.5464,3845.6,3845.5,0.1296]
[1761900218806,2.36666211,3845.6,3845.5,0.1296]
[1761900219205,0.5464,3845.6,3845.5,0.1296]
[1761900219808,2.36666211,3845.6,3845.5,0.1296]
[1761900220035,2.78644243,3845.6,3845.5,0.1296]
[1761900220739,0.5464,3845.6,3845.5,0.1296]
[1761900221141,1.82034616,3845.5,3844.6,1.40168]
[1761900221450,1.83122463,3845.7,3845.3,0.1296]
[1761900221607,2.16596311,3845.6,3845.3,0.1296]
[1761900221807,0.79260518,3845.7,3845.4,4.87542665]
[1761900222003,0.011,3845.7,3845.6,0.1296]
[1761900222640,0.2117,3845.7,3845.6,0.1296]
[1761900223437,0.011,3845.7,3845.6,0.1296]
[1761900223802,0.2117,3845.7,3845.6,0.1296]
[1761900224129,0.2117,3845.7,3845.6,0.15560374]
[1761900224648,0.2117,3845.7,3845.6,0.1296]
[1761900225644,0.011,3845.7,3845.6,0.68015293]
[1761900227242,0.011,3845.7,3845.6,1.19175667]
[1761900227447,0.011,3845.7,3845.6,1.65575667]
[1761900229438,0.011,3845.7,3845.6,1.19175667]
[1761900229928,0.011,3845.7,3845.6,1.66035667]
[1761900230234,0.011,3845.7,3845.6,1.63435293]
[1761900230922,0.011,3845.7,3845.6,3.45461504]
[1761900231126,0.011,3845.7,3845.6,4.85429504]
[1761900231332,0.011,3845.7,3845.6,4.88029878]
[1761900231545,0.011,3845.7,3845.6,4.85429504]
[1761900231966,0.011,3845.7,3845.6,4.88029878]
[1761900232471,0.011,3845.7,3845.6,5.13019904]
[1761900232642,0.011,3845.7,3845.6,5.25979904]
[1761900235442,0.011,3845.7,3845.6,3.03603293]
[1761900235765,0.011,3845.7,3845.6,9.73172169]
[1761900235966,0.011,3845.7,3845.6,7.44285958]
[1761900236169,0.3119,3845.7,3845.6,1.53128]
[1761900236579,0.011,3845.7,3845.6,1.53128]
[1761900237079,0.3109,3845.7,3845.6,1.53128]
[1761900239053,0.3101,3845.7,3845.6,1.53128]
[1761900239664,0.0102,3845.7,3845.6,1.53128]
[1761900240288,0.4095,3845.7,3845.6,0.1316]
[1761900240784,0.6564,3845.7,3845.6,0.1316]
[1761900240996,2.72426353,3845.7,3845.6,0.1316]
[1761900242096,2.72426353,3845.7,3845.6,0.002]
[1761900242678,2.82847701,3845.7,3845.6,0.002]
[1761900248701,2.58082826,3845.7,3845.6,0.002]
[1761900248915,2.33392826,3845.7,3845.6,0.002]
[1761900249073,0.51371348,3845.7,3845.6,0.002]
[1761900249272,2.22971478,3845.7,3845.6,0.1316]
[1761900249770,2.47731478,3845.7,3845.6,0.1316]
[1761900250775,2.17741478,3845.7,3845.6,0.1316]
[1761900251107,2.47681478,3845.7,3845.6,0.1316]
[1761900252399,3.25837312,3845.7,3845.6,0.1316]
[1761900253507,2.95897312,3845.7,3845.6,0.1316]
[1761900253707,3.25837312,3845.7,3845.6,0.1316]
[1761900253882,3.76622265,3845.7,3845.6,0.1316]
[1761900257449,3.25837312,3845.7,3845.6,0.1316]
[1761900258316,2.47681478,3845.7,3845.6,0.1316]
[1761900258824,2.17741478,3845.7,3845.6,0.1316]
[1761900259783,1.83041478,3845.7,3845.6,0.1316]
[1761900260251,2.03271478,3845.7,3845.6,0.1316]
[1761900261319,2.37701478,3845.7,3845.6,0.1316]
[1761900261535,2.03271478,3845.7,3845.6,0.1316]
[1761900261721,2.81979848,3845.7,3845.6,0.1316]
[1761900261928,3.29539848,3845.7,3845.6,0.1316]
[1761900262141,3.29539848,3845.7,3845.6,0.002]
[1761900263349,2.74879848,3845.7,3845.6,0.002]
[1761900263766,2.95109848,3845.7,3845.6,0.002]
[1761900264145,2.95029848,3845.7,3845.6,0.002]
[1761900266834,3.29459848,3845.7,3845.6,0.002]
[1761900267223,2.95029848,3845.7,3845.6,0.002]
[1761900273845,0.9277837,3845.7,3845.6,0.002]
[1761900274050,2.30521478,3845.7,3845.6,0.002]
[1761900274811,2.50751478,3845.7,3845.6,0.002]
[1761900276056,0.485,3845.7,3845.6,0.002]
[1761900276582,2.30521478,3845.7,3845.6,0.002]
[1761900278894,2.30521478,3845.7,3845.6,0.4534]
[1761900279060,2.30521478,3845.7,3845.6,0.002]
[1761900279960,2.50751478,3845.7,3845.6,0.002]
[1761900283306,2.30521478,3845.7,3845.6,0.002]
[1761900285297,2.30521478,3845.7,3845.6,0.4534]
[1761900286100,2.50751478,3845.7,3845.6,0.002]
[1761900287815,2.30521478,3845.7,3845.6,0.002]
[1761900288412,2.50751478,3845.7,3845.6,0.002]
[1761900288590,2.85181478,3845.7,3845.6,0.002]
[1761900288934,3.34191111,3845.7,3845.6,0.002]
[1761900289095,3.47151111,3845.7,3845.6,0.002]
[1761900289288,3.47071111,3845.7,3845.6,0.002]
[1761900290224,3.12641111,3845.7,3845.6,0.002]
[1761900290403,3.47071111,3845.7,3845.6,0.002]
[1761900290598,8.95858674,3845.7,3845.6,0.002]
[1761900293299,9.36409074,3845.7,3845.6,0.002]
[1761900293708,10.76377074,3845.7,3845.6,0.002]
[1761900293910,4.80199511,3845.7,3845.6,0.002]
[1761900294133,5.14629511,3845.7,3845.6,0.002]
[1761900294446,10.63417074,3845.7,3845.6,0.002]
[1761900297152,19.83055174,3845.7,3845.6,0.002]
[1761900297317,19.57005174,3845.7,3845.6,0.002]
[1761900298215,15.39693174,3845.7,3845.6,0.002]
[1761900298427,15.13643174,3845.7,3845.6,0.002]
[1761900298628,14.06084974,3845.7,3845.6,0.002]
[1761900298948,12.70084974,3845.7,3845.6,0.002]
[1761900299355,5.14629511,3845.7,3845.6,0.002]
[1761900301620,4.65619878,3845.7,3845.6,0.002]
[1761900304355,2.30441478,3845.7,3845.6,0.002]
[1761900304560,2.30441478,3845.7,3845.6,0.9591]
[1761900304762,0.4842,3845.7,3845.6,0.9591]
[1761900304924,0.0086,3845.7,3845.6,0.9591]
[1761900306642,0.79016649,3845.7,3845.6,0.9591]
[1761900308632,0.79016649,3845.7,3845.6,1.0887]
[1761900308836,0.0086,3845.7,3845.6,1.0887]
[1761900309159,0.0086,3845.7,3845.6,0.6192]
[1761900309357,0.0086,3845.7,3845.6,0.1316]
[1761900309538,1.82881478,3845.7,3845.6,0.1316]
[1761900309737,1.82881478,3845.7,3845.6,0.6192]
[1761900310934,2.03111478,3845.7,3845.6,0.002]
[1761900311170,2.16071478,3845.7,3845.6,0.002]
[1761900311670,1.95841478,3845.7,3845.6,0.002]
[1761900311976,2.16211478,3845.7,3845.6,0.002]
[1761900313171,1.95841478,3845.7,3845.6,0.002]
[1761900313535,1.82029446,3845.6,3845.2,0.12838628]
[1761900313746,0.3405,3845.7,3845.2,0.12838628]
[1761900313948,0.2037,3845.3,3845.2,0.12838628]
[1761900314379,1.82039875,3845.4,3845.2,0.12838628]
[1761900314550,1.81959875,3845.4,3845.2,0.12838628]
[1761900316693,0.1382,3845.7,3845.3,0.9571]
[1761900316993,1.82027385,3845.6,3845.3,0.9571]
[1761900317189,1.95842076,3845.7,3845.4,0.4747]
[1761900317368,1.95842076,3845.7,3845.5,0.4877]
[1761900317569,1.82026211,3845.6,3845.2,0.12838628]
[1761900317754,0.1382,3845.7,3845.2,0.60308628]
[1761900317755,1.82032457,3845.5,3845.2,0.60308628]
[1761900317960,1.82039922,3845.4,3845.2,0.12838628]
[1761900318207,1.82031579,3845.5,3845.2,0.12838628]
[1761900318366,1.82031579,3845.5,3845.3,0.4877]
[1761900319291,1.82031579,3845.5,3845.4,0.4877]
[1761900319699,0.1382,3845.7,3845.4,0.9624]
[1761900319864,0.1382,3845.7,3845.6,0.4602]
[1761900320064,1.95841489,3845.7,3845.2,0.12838628]
[1761900320266,0.1382,3845.7,3845.3,0.4978]
[1761900320665,1.82026211,3845.6,3845.3,0.4978]
[1761900321008,1.82031105,3845.5,3845.3,0.4978]
[1761900321593,0.1382,3845.7,3845.4,0.4602]
[1761900321794,0.1382,3845.7,3845.6,0.4602]
[1761900322161,1.95841478,3845.7,3845.6,0.4602]
[1761900322661,1.82026394,3845.6,3845.2,0.12838628]
[1761900323094,1.82026394,3845.6,3845.3,0.4978]
[1761900323389,1.82026394,3845.6,3845.5,0.4602]
[1761900323785,1.95841566,3845.7,3845.5,0.4602]
[1761900323984,0.1382,3845.7,3845.5,0.4602]
[1761900324191,1.95841478,3845.7,3845.6,0.4602]
[1761900328480,1.95841478,3845.7,3845.6,0.958]
[1761900328686,1.95841478,3845.7,3845.4,0.002]
[1761900329078,1.95841478,3845.7,3845.4,0.4998]
[1761900329897,1.95841478,3845.7,3845.6,0.4602]
[1761900330285,0.0086,3845.7,3845.6,0.4602]
[1761900330466,1.82881478,3845.7,3845.6,0.4602]
[1761900330867,0.0086,3845.7,3845.6,0.4602]
[1761900331278,1.82881478,3845.7,3845.6,0.4602]
[1761900331872,1.82026522,3845.6,3845.4,0.6294]
[1761900332274,1.82026522,3845.6,3845.5,0.4602]
[1761900333269,1.82026522,3845.6,3845.5,0.958]
[1761900333470,0.0086,3845.7,3845.5,0.958]
[1761900333664,0.0086,3845.7,3845.6,0.958]
[1761900333889,0.0086,3845.7,3845.4,0.1316]
[1761900333890,1.82885683,3845.7,3845.4,0.1316]
[1761900334167,1.82027497,3845.6,3845.4,0.1316]
[1761900334365,1.82027497,3845.6,3845.4,0.6294]
[1761900334564,1.82027497,3845.6,3845.5,0.4602]
[1761900334765,0.0086,3845.7,3845.5,0.4602]
[1761900335003,0.0086,3845.7,3845.5,0.958]
[1761900335200,1.82882116,3845.7,3845.4,0.1316]
[1761900336500,1.82882116,3845.7,3845.4,0.6294]
[1761900336501,1.82026281,3845.6,3845.4,0.6294]
[1761900336709,1.82030945,3845.5,3845.4,0.1316]
[1761900337175,1.82030945,3845.5,3845.4,0.5918]
[1761900337375,1.82030945,3845.5,3845.4,0.002]
[1761900337376,2.16600945,3845.5,3845.4,0.002]
[1761900337595,0.0086,3845.7,3845.4,0.4622]
[1761900337802,1.82885804,3845.7,3845.5,0.4602]
[1761900337970,0.2023,3845.5,3845.4,0.002]
[1761900338169,2.02260945,3845.5,3845.4,0.002]
[1761900338367,0.0086,3845.7,3845.4,0.4622]
[1761900338584,0.0086,3845.7,3845.6,0.4602]
[1761900338983,0.0086,3845.7,3845.6,0.958]
[1761900339789,0.0078,3845.7,3845.6,0.958]
[1761900341214,1.82801478,3845.7,3845.6,0.958]
[1761900341422,1.82027785,3845.6,3845.4,0.1316]
[1761900341612,0.0078,3845.7,3845.4,0.1316]
[1761900341910,1.82801478,3845.7,3845.6,0.4602]
[1761900343114,1.82030945,3845.5,3845.4,0.4998]
[1761900343694,0.0078,3845.7,3845.6,0.4602]
[1761900343940,1.82801478,3845.7,3845.6,0.4602]
[1761900344329,1.82801478,3845.7,3845.6,0.958]
[1761900344645,1.82801478,3845.7,3845.6,0.4602]
[1761900345011,1.82801478,3845.7,3845.4,0.002]
[1761900345012,1.82030945,3845.5,3845.4,0.002]
[1761900345208,1.82230945,3845.5,3845.4,0.002]
[1761900345406,1.82030945,3845.5,3845.4,0.002]
[1761900346024,1.82030945,3845.5,3845.4,0.4622]
[1761900347236,1.82030945,3845.5,3845.4,0.96]
[1761900349006,1.8202692,3845.6,3845.4,0.96]
[1761900349205,1.8202692,3845.6,3845.5,0.4978]
[1761900349406,1.8202692,3845.6,3845.5,0.958]
[1761900349719,1.8202692,3845.6,3845.5,0.4602]
[1761900350064,0.0078,3845.7,3845.5,0.9342]
[1761900350272,0.0078,3845.7,3845.6,0.4569]
[1761900350569,0.0078,3845.7,3845.6,0.9309]
[1761900350946,1.82801478,3845.7,3845.6,0.9309]
[1761900352068,0.0078,3845.7,3845.6,0.9309]
[1761900352728,1.82801478,3845.7,3845.6,0.9309]
[1761900354473,0.0078,3845.7,3845.6,0.9309]
[1761900355773,1.82026211,3845.6,3845.5,0.1296]
[1761900355938,0.0078,3845.7,3845.5,0.1296]
[1761900356138,0.0078,3845.7,3845.6,0.9309]
[1761900359138,1.82801478,3845.7,3845.5,0.1316]
[1761900359472,1.82801478,3845.7,3845.6,0.4569]
[1761900360070,1.82801478,3845.7,3845.6,0.9309]
[1761900360576,1.82801478,3845.7,3845.6,0.4569]
[1761900360873,1.82801478,3845.7,3845.6,0.9309]
[1761900361676,1.82801478,3845.7,3845.6,0.4569]
[1761900362040,0.0078,3845.7,3845.6,0.9309]
[1761900365062,0.007,3845.7,3845.6,0.9309]
[1761900366205,0.007,3845.7,3845.6,2.75116211]
[1761900366767,0.007,3845.7,3845.6,2.85535604]
[1761900367496,0.007,3845.7,3845.6,2.88135978]
[1761900367693,0.007,3845.7,3845.6,1.03509393]
[1761900368165,0.007,3845.7,3845.6,0.4569]
[1761900368808,0.007,3845.7,3845.5,0.1316]
[1761900368984,0.007,3845.7,3845.5,0.6056]
[1761900369187,0.007,3845.7,3845.6,0.9309]
[1761900369792,0.007,3845.7,3845.6,0.4569]
[1761900370606,0.007,3845.7,3845.5,0.1316]
[1761900371405,0.007,3845.7,3845.6,0.4569]
[1761900372164,0.007,3845.7,3845.6,0.9309]
[1761900372369,0.007,3845.7,3845.5,0.1316]
[1761900372572,0.007,3845.7,3845.6,0.4569]
[1761900373085,0.007,3845.7,3845.6,0.9309]
[1761900373686,0.007,3845.7,3845.6,2.75116211]
[1761900373890,0.007,3845.7,3845.6,0.9309]
[1761900375287,0.007,3845.7,3845.6,7.63025608]